fUSD/lending_fUSD_20260528
["ID","MTS","AMOUNT","RATE_DAILY","PERIOD"]
[423201945,1779922239000,-150.0,0.00013961,2]
[423201918,1779922239000,-150.0,0.00013702,2]
[423201914,1779922239000,-200.0,0.00013699,2]
[423201916,1779922239000,-2500.0,0.00013699,2]
[423201921,1779922239000,-150.0,0.00013724,2]
[423201922,1779922239000,-150.0,0.00013737,2]
[423201925,1779922239000,-150.0,0.00013764,2]
[423201924,1779922239000,-16718.22081223,0.00013743,2]
[423201933,1779922239000,-8117.6587512,0.00013868,2]
[423201930,1779922239000,-166.66,0.00013836,2]
[423201926,1779922239000,-150.0,0.00013787,2]
[423201928,1779922239000,-11459.4952,0.00013808,2]
[423201932,1779922239000,-881.7946673,0.00013868,2]
[423201923,1779922239000,-150.0,0.00013737,2]
[423201943,1779922239000,-150.0,0.00013937,2]
[423201946,1779922239000,-166.66,0.00013973,2]
[423201929,1779922239000,-2000.0,0.00013808,2]
[423201944,1779922239000,-5756.9731151,0.00013952,2]
[423201939,1779922239000,-150.0,0.00013916,2]
[423201938,1779922239000,-107196.4383911,0.00013908,2]
[423201935,1779922239000,-16718.22081223,0.00013887,2]
[423201937,1779922239000,-533.24,0.00013907,2]
[423201936,1779922239000,-500.0,0.00013907,2]
[423201931,1779922239000,-150.0,0.00013843,2]
[423201927,1779922239000,-150.0,0.00013803,2]
[423201934,1779922239000,-150.0,0.00013882,2]
[423202013,1779922240000,-150.0,0.00014558,2]
[423202018,1779922240000,-300.0,0.000146,5]
[423202012,1779922240000,-150.0,0.00014552,2]
[423202014,1779922240000,-150.0,0.00014558,2]
[423202015,1779922240000,-150.0,0.00014558,2]
[423202017,1779922240000,-150.0,0.00014592,2]
[423202009,1779922240000,-1900.0,0.000145,5]
[423202010,1779922240000,-150.0,0.00014513,2]
[423202011,1779922240000,-150.0,0.00014537,2]
[423202008,1779922240000,-150.0,0.00014487,2]
[423202020,1779922240000,-150.0,0.00014631,2]
[423202005,1779922240000,-16718.22081223,0.00014466,2]
[423202016,1779922240000,-5756.9731151,0.00014584,2]
[423202022,1779922240000,-150.0,0.00014687,2]
[423202031,1779922240000,-500.0,0.00014755,2]
[423202021,1779922240000,-150.0,0.00014671,2]
[423202024,1779922240000,-150.0,0.0001471,2]
[423202026,1779922240000,-150.0,0.00014737,2]
[423202025,1779922240000,-150.0,0.00014737,2]
[423202027,1779922240000,-150.0,0.0001475,2]
[423202028,1779922240000,-470.83965124,0.00014755,2]
[423202032,1779922240000,-1080.25,0.00014755,2]
[423202030,1779922240000,-500.0,0.00014755,2]
[423202033,1779922240000,-16718.22081223,0.00014755,2]
[423202029,1779922240000,-369.13671938,0.00014755,2]
[423202034,1779922240000,-150.0,0.00014772,2]
[423202001,1779922240000,-150.0,0.00014395,2]
[423202036,1779922240000,-150.0,0.00014772,2]
[423202023,1779922240000,-300.0,0.000147,5]
[423202004,1779922240000,-150.0,0.00014434,2]
[423201977,1779922240000,-150.0,0.00014158,2]
[423202002,1779922240000,-2000.0,0.00014396,2]
[423202037,1779922240000,-150.0,0.00014789,2]
[423201974,1779922240000,-150.0,0.0001413,2]
[423201973,1779922240000,-150.0,0.00014119,2]
[423201975,1779922240000,-150.0,0.0001413,2]
[423201981,1779922240000,-700.0,0.000142,5]
[423201976,1779922240000,-150.0,0.0001413,2]
[423201980,1779922240000,-150.0,0.00014198,2]
[423201979,1779922240000,-16718.22081223,0.00014177,2]
[423201983,1779922240000,-150.0,0.00014237,2]
[423201982,1779922240000,-150.0,0.00014237,2]
[423201984,1779922240000,-150.0,0.00014237,2]
[423201985,1779922240000,-150.0,0.00014237,2]
[423201986,1779922240000,-150.0,0.00014237,2]
[423201987,1779922240000,-166.66,0.00014247,2]
[423201988,1779922240000,-5756.9731151,0.00014268,2]
[423201991,1779922240000,-500.0,0.00014312,2]
[423201994,1779922240000,-16718.22081223,0.00014321,2]
[423201993,1779922240000,-257.5,0.00014321,2]
[423201992,1779922240000,-150.0,0.00014316,2]
[423201989,1779922240000,-150.0,0.00014276,2]
[423201990,1779922240000,-1100.0,0.000143,5]
[423201996,1779922240000,-150.0,0.00014344,2]
[423201998,1779922240000,-150.0,0.00014355,2]
[423201995,1779922240000,-150.0,0.00014344,2]
[423201997,1779922240000,-150.0,0.00014344,2]
[423202000,1779922240000,-150.0,0.00014387,2]
[423201999,1779922240000,-166.66,0.00014384,2]
[423202003,1779922240000,-1500.0,0.000144,5]
[423202006,1779922240000,-150.0,0.00014474,2]
[423202007,1779922240000,-150.0,0.00014487,2]
[423202035,1779922240000,-150.0,0.00014772,2]
[423202019,1779922240000,-16718.22081223,0.00014611,2]
[423202038,1779922240000,-300.0,0.000148,5]
[423202071,1779922240000,-500.0,0.00014999,2]
[423202072,1779922240000,-500.0,0.00014999,2]
[423202073,1779922240000,-500.0,0.00014999,2]
[423202075,1779922240000,-500.0,0.00014999,2]
[423202077,1779922240000,-349.46206438,0.00014999,2]
[423202076,1779922240000,-500.0,0.00014999,2]
[423202080,1779922240000,-500.0,0.00014999,2]
[423202078,1779922240000,-500.0,0.00014999,2]
[423202087,1779922240000,-500.0,0.00014999,2]
[423202082,1779922240000,-500.0,0.00014999,2]
[423202081,1779922240000,-500.0,0.00014999,2]
[423202079,1779922240000,-500.0,0.00014999,2]
[423202084,1779922240000,-500.0,0.00014999,2]
[423202083,1779922240000,-500.0,0.00014999,2]
[423202085,1779922240000,-252.09913183,0.00014999,2]
[423202088,1779922240000,-643.17963152,0.00014999,2]
[423202090,1779922240000,-500.0,0.00014999,2]
[423202091,1779922240000,-500.0,0.00014999,2]
[423202089,1779922240000,-500.0,0.00014999,2]
[423202092,1779922240000,-500.0,0.00014999,2]
[423202094,1779922240000,-500.0,0.00014999,2]
[423202095,1779922240000,-500.0,0.00014999,2]
[423202096,1779922240000,-500.0,0.00014999,2]
[423202100,1779922240000,-643.66324875,0.00014999,2]
[423202098,1779922240000,-500.0,0.00014999,2]
[423202097,1779922240000,-500.0,0.00014999,2]
[423202093,1779922240000,-500.0,0.00014999,2]
[423202099,1779922240000,-500.0,0.00014999,2]
[423202039,1779922240000,-150.0,0.00014829,2]
[423202070,1779922240000,-500.0,0.00014999,2]
[423202068,1779922240000,-500.0,0.00014999,2]
[423202102,1779922240000,-2047.04,0.00014999,2]
[423202067,1779922240000,-533.24,0.00014998,2]
[423202069,1779922240000,-500.0,0.00014999,2]
[423202044,1779922240000,-402.47019606,0.000149,2]
[423202043,1779922240000,-1815.05815645,0.000149,2]
[423202041,1779922240000,-229.82585641,0.00014839,2]
[423202040,1779922240000,-150.0,0.00014836,2]
[423202047,1779922240000,-399.08622868,0.000149,2]
[423202046,1779922240000,-5756.9731151,0.000149,2]
[423202045,1779922240000,-300.0,0.000149,5]
[423202049,1779922240000,-1649.21210042,0.000149,2]
[423202048,1779922240000,-16718.22081223,0.000149,2]
[423202050,1779922240000,-14121.25366632,0.000149,2]
[423202051,1779922240000,-150.0,0.00014907,2]
[423202053,1779922240000,-150.0,0.00014986,2]
[423202052,1779922240000,-150.0,0.00014947,2]
[423202042,1779922240000,-150.0,0.00014868,2]
[423202055,1779922240000,-150.0,0.00014986,2]
[423202065,1779922240000,-151.96613771,0.0001499,2]
[423202066,1779922240000,-500.0,0.00014998,2]
[423202074,1779922240000,-500.0,0.00014999,2]
[423202064,1779922240000,-151.96613771,0.0001499,2]
[423202054,1779922240000,-150.0,0.00014986,2]
[423202063,1779922240000,-151.96613771,0.0001499,2]
[423202062,1779922240000,-150.0,0.00014986,2]
[423202059,1779922240000,-299.7778038,0.00014986,2]
[423202058,1779922240000,-150.0,0.00014986,2]
[423202056,1779922240000,-150.0,0.00014986,2]
[423202101,1779922240000,-2047.04,0.00014999,2]
[423202060,1779922240000,-150.0,0.00014986,2]
[423202061,1779922240000,-255.41904479,0.00014986,2]
[423202057,1779922240000,-150.0,0.00014986,2]
[423202151,1779922241000,-500.0,0.00014999,2]
[423202148,1779922241000,-520.92,0.00014999,2]
[423202145,1779922241000,-520.92,0.00014999,2]
[423202147,1779922241000,-500.0,0.00014999,2]
[423202142,1779922241000,-520.92,0.00014999,2]
[423202133,1779922241000,-520.92,0.00014999,2]
[423202143,1779922241000,-520.92,0.00014999,2]
[423202140,1779922241000,-520.92,0.00014999,2]
[423202138,1779922241000,-520.92,0.00014999,2]
[423202134,1779922241000,-520.92,0.00014999,2]
[423202139,1779922241000,-520.92,0.00014999,2]
[423202144,1779922241000,-520.92,0.00014999,2]
[423202152,1779922241000,-520.92,0.00014999,2]
[423202158,1779922241000,-500.0,0.00014999,2]
[423202149,1779922241000,-500.0,0.00014999,2]
[423202154,1779922241000,-520.99,0.00014999,2]
[423202146,1779922241000,-520.92,0.00014999,2]
[423202155,1779922241000,-500.0,0.00014999,2]
[423202153,1779922241000,-500.0,0.00014999,2]
[423202156,1779922241000,-500.0,0.00014999,2]
[423202157,1779922241000,-500.0,0.00014999,2]
[423202160,1779922241000,-500.0,0.00014999,2]
[423202159,1779922241000,-500.0,0.00014999,2]
[423202162,1779922241000,-500.0,0.00014999,2]
[423202161,1779922241000,-500.0,0.00014999,2]
[423202163,1779922241000,-530.08819485,0.00014999,2]
[423202141,1779922241000,-520.92,0.00014999,2]
[423202150,1779922241000,-520.92,0.00014999,2]
[423202136,1779922241000,-520.92,0.00014999,2]
[423202118,1779922241000,-2047.04,0.00014999,2]
[423202132,1779922241000,-520.92,0.00014999,2]
[423202164,1779922241000,-500.0,0.00014999,2]
[423202103,1779922241000,-2047.04,0.00014999,2]
[423202104,1779922241000,-2047.04,0.00014999,2]
[423202105,1779922241000,-2047.04,0.00014999,2]
[423202106,1779922241000,-2047.04,0.00014999,2]
[423202107,1779922241000,-2047.04,0.00014999,2]
[423202108,1779922241000,-2047.04,0.00014999,2]
[423202109,1779922241000,-2047.04,0.00014999,2]
[423202110,1779922241000,-2047.04,0.00014999,2]
[423202112,1779922241000,-2047.04,0.00014999,2]
[423202111,1779922241000,-2047.04,0.00014999,2]
[423202114,1779922241000,-2047.04,0.00014999,2]
[423202115,1779922241000,-2047.04,0.00014999,2]
[423202135,1779922241000,-520.92,0.00014999,2]
[423202116,1779922241000,-2047.04,0.00014999,2]
[423202119,1779922241000,-2047.04,0.00014999,2]
[423202120,1779922241000,-2047.04,0.00014999,2]
[423202122,1779922241000,-500.0,0.00014999,2]
[423202125,1779922241000,-500.0,0.00014999,2]
[423202126,1779922241000,-500.0,0.00014999,2]
[423202123,1779922241000,-500.0,0.00014999,2]
[423202121,1779922241000,-2047.11216464,0.00014999,2]
[423202124,1779922241000,-500.0,0.00014999,2]
[423202128,1779922241000,-500.0,0.00014999,2]
[423202127,1779922241000,-500.0,0.00014999,2]
[423202129,1779922241000,-519.56568703,0.00014999,2]
[423202130,1779922241000,-520.92,0.00014999,2]
[423202131,1779922241000,-520.92,0.00014999,2]
[423202117,1779922241000,-2047.04,0.00014999,2]
[423202165,1779922241000,-500.0,0.00014999,2]
[423202168,1779922241000,-500.0,0.00014999,2]
[423202167,1779922241000,-500.0,0.00014999,2]
[423202198,1779922241000,-718.07,0.00014999,2]
[423202203,1779922241000,-651.5,0.00014999,2]
[423202202,1779922241000,-651.5,0.00014999,2]
[423202204,1779922241000,-651.5,0.00014999,2]
[423202206,1779922241000,-651.5,0.00014999,2]
[423202205,1779922241000,-651.5,0.00014999,2]
[423202207,1779922241000,-651.5,0.00014999,2]
[423202209,1779922241000,-651.5,0.00014999,2]
[423202208,1779922241000,-651.5,0.00014999,2]
[423202213,1779922241000,-651.5,0.00014999,2]
[423202212,1779922241000,-651.5,0.00014999,2]
[423202211,1779922241000,-651.5,0.00014999,2]
[423202210,1779922241000,-651.5,0.00014999,2]
[423202214,1779922241000,-651.5,0.00014999,2]
[423202215,1779922241000,-651.5,0.00014999,2]
[423202216,1779922241000,-651.5,0.00014999,2]
[423202217,1779922241000,-651.5,0.00014999,2]
[423202218,1779922241000,-651.5,0.00014999,2]
[423202221,1779922241000,-651.61446503,0.00014999,2]
[423202224,1779922241000,-500.0,0.00014999,2]
[423202219,1779922241000,-651.5,0.00014999,2]
[423202223,1779922241000,-500.0,0.00014999,2]
[423202220,1779922241000,-651.5,0.00014999,2]
[423202222,1779922241000,-500.0,0.00014999,2]
[423202226,1779922241000,-500.0,0.00014999,2]
[423202225,1779922241000,-500.0,0.00014999,2]
[423202166,1779922241000,-500.0,0.00014999,2]
[423202195,1779922241000,-718.07,0.00014999,2]
[423202200,1779922241000,-718.07,0.00014999,2]
[423202227,1779922241000,-500.0,0.00014999,2]
[423202197,1779922241000,-718.07,0.00014999,2]
[423202199,1779922241000,-718.07,0.00014999,2]
[423202171,1779922241000,-500.0,0.00014999,2]
[423202170,1779922241000,-500.0,0.00014999,2]
[423202173,1779922241000,-500.0,0.00014999,2]
[423202172,1779922241000,-500.0,0.00014999,2]
[423202174,1779922241000,-500.0,0.00014999,2]
[423202178,1779922241000,-500.0,0.00014999,2]
[423202177,1779922241000,-500.0,0.00014999,2]
[423202176,1779922241000,-500.0,0.00014999,2]
[423202175,1779922241000,-500.0,0.00014999,2]
[423202180,1779922241000,-500.0,0.00014999,2]
[423202179,1779922241000,-500.0,0.00014999,2]
[423202181,1779922241000,-625.5,0.00014999,2]
[423202183,1779922241000,-718.07,0.00014999,2]
[423202169,1779922241000,-500.0,0.00014999,2]
[423202186,1779922241000,-718.07,0.00014999,2]
[423202182,1779922241000,-718.07,0.00014999,2]
[423202193,1779922241000,-718.07,0.00014999,2]
[423202196,1779922241000,-718.07,0.00014999,2]
[423202194,1779922241000,-718.07,0.00014999,2]
[423202192,1779922241000,-718.07,0.00014999,2]
[423202191,1779922241000,-718.07,0.00014999,2]
[423202201,1779922241000,-718.28030314,0.00014999,2]
[423202190,1779922241000,-718.07,0.00014999,2]
[423202189,1779922241000,-718.07,0.00014999,2]
[423202184,1779922241000,-718.07,0.00014999,2]
[423202187,1779922241000,-718.07,0.00014999,2]
[423202185,1779922241000,-718.07,0.00014999,2]
[423202188,1779922241000,-718.07,0.00014999,2]
[423202268,1779922242000,-500.0,0.00014999,2]
[423202267,1779922242000,-500.0,0.00014999,2]
[423202265,1779922242000,-500.0,0.00014999,2]
[423202262,1779922242000,-500.0,0.00014999,2]
[423202260,1779922242000,-500.0,0.00014999,2]
[423202266,1779922242000,-500.0,0.00014999,2]
[423202256,1779922242000,-500.0,0.00014999,2]
[423202259,1779922242000,-500.0,0.00014999,2]
[423202264,1779922242000,-500.0,0.00014999,2]
[423202269,1779922242000,-500.0,0.00014999,2]
[423202258,1779922242000,-500.0,0.00014999,2]
[423202261,1779922242000,-500.0,0.00014999,2]
[423202275,1779922242000,-500.0,0.00014999,2]
[423202270,1779922242000,-500.39154945,0.00014999,2]
[423202272,1779922242000,-500.0,0.00014999,2]
[423202278,1779922242000,-500.0,0.00014999,2]
[423202277,1779922242000,-500.0,0.00014999,2]
[423202279,1779922242000,-500.0,0.00014999,2]
[423202271,1779922242000,-500.0,0.00014999,2]
[423202274,1779922242000,-164.03595357,0.00014999,2]
[423202276,1779922242000,-500.0,0.00014999,2]
[423202280,1779922242000,-500.0,0.00014999,2]
[423202282,1779922242000,-500.0,0.00014999,2]
[423202283,1779922242000,-500.0,0.00014999,2]
[423202284,1779922242000,-500.0,0.00014999,2]
[423202263,1779922242000,-500.0,0.00014999,2]
[423202273,1779922242000,-500.0,0.00014999,2]
[423202257,1779922242000,-500.0,0.00014999,2]
[423202242,1779922242000,-500.0,0.00014999,2]
[423202255,1779922242000,-500.0,0.00014999,2]
[423202229,1779922242000,-500.0,0.00014999,2]
[423202231,1779922242000,-500.0,0.00014999,2]
[423202233,1779922242000,-500.0,0.00014999,2]
[423202234,1779922242000,-500.0,0.00014999,2]
[423202232,1779922242000,-500.0,0.00014999,2]
[423202230,1779922242000,-500.0,0.00014999,2]
[423202236,1779922242000,-500.0,0.00014999,2]
[423202240,1779922242000,-500.0,0.00014999,2]
[423202239,1779922242000,-500.0,0.00014999,2]
[423202281,1779922242000,-500.0,0.00014999,2]
[423202235,1779922242000,-203.76945539,0.00014999,2]
[423202237,1779922242000,-500.0,0.00014999,2]
[423202254,1779922242000,-500.0,0.00014999,2]
[423202238,1779922242000,-500.0,0.00014999,2]
[423202243,1779922242000,-500.0,0.00014999,2]
[423202246,1779922242000,-500.0,0.00014999,2]
[423202252,1779922242000,-500.0,0.00014999,2]
[423202253,1779922242000,-325.03034277,0.00014999,2]
[423202248,1779922242000,-500.0,0.00014999,2]
[423202244,1779922242000,-500.0,0.00014999,2]
[423202245,1779922242000,-500.0,0.00014999,2]
[423202249,1779922242000,-500.0,0.00014999,2]
[423202228,1779922242000,-500.0,0.00014999,2]
[423202251,1779922242000,-500.0,0.00014999,2]
[423202247,1779922242000,-500.0,0.00014999,2]
[423202250,1779922242000,-500.0,0.00014999,2]
[423202241,1779922242000,-500.0,0.00014999,2]
[423202285,1779922242000,-500.0,0.00014999,2]
[423202321,1779922242000,-1080.25,0.00014999,2]
[423202286,1779922242000,-500.0,0.00014999,2]
[423202320,1779922242000,-1080.25,0.00014999,2]
[423202319,1779922242000,-1080.25,0.00014999,2]
[423202322,1779922242000,-1080.25,0.00014999,2]
[423202332,1779922242000,-1080.25,0.00014999,2]
[423202326,1779922242000,-1080.25,0.00014999,2]
[423202329,1779922242000,-1080.25,0.00014999,2]
[423202324,1779922242000,-1080.25,0.00014999,2]
[423202325,1779922242000,-1080.25,0.00014999,2]
[423202323,1779922242000,-1080.25,0.00014999,2]
[423202331,1779922242000,-1080.25,0.00014999,2]
[423202328,1779922242000,-1080.25,0.00014999,2]
[423202327,1779922242000,-1080.25,0.00014999,2]
[423202316,1779922242000,-1080.25,0.00014999,2]
[423202330,1779922242000,-1080.25,0.00014999,2]
[423202334,1779922242000,-1080.25,0.00014999,2]
[423202335,1779922242000,-1080.25,0.00014999,2]
[423202339,1779922242000,-2498502.89532526,0.00015,2]
[423202337,1779922242000,-1080.25,0.00014999,2]
[423202336,1779922242000,-1080.25,0.00014999,2]
[423202340,1779922242000,-164.03,0.00015,2]
[423202341,1779922242000,-12094510.99327362,0.00015,2]
[423202342,1779922242000,-13161.94005181,0.00015,2]
[423202344,1779922242000,-653102.74176834,0.00015,2]
[423202343,1779922242000,-2403.83756816,0.00015,2]
[423202345,1779922242000,-302267.5577335,0.00015,2]
[423202287,1779922242000,-500.0,0.00014999,2]
[423202333,1779922242000,-1080.25,0.00014999,2]
[423202310,1779922242000,-533.24,0.00014999,2]
[423202338,1779922242000,-1080.3485681,0.00014999,2]
[423202318,1779922242000,-1080.25,0.00014999,2]
[423202308,1779922242000,-533.24,0.00014999,2]
[423202291,1779922242000,-500.0,0.00014999,2]
[423202289,1779922242000,-500.0,0.00014999,2]
[423202288,1779922242000,-500.0,0.00014999,2]
[423202292,1779922242000,-500.0,0.00014999,2]
[423202294,1779922242000,-533.24,0.00014999,2]
[423202293,1779922242000,-190.88366952,0.00014999,2]
[423202295,1779922242000,-533.24,0.00014999,2]
[423202296,1779922242000,-533.24,0.00014999,2]
[423202299,1779922242000,-533.24,0.00014999,2]
[423202300,1779922242000,-533.24,0.00014999,2]
[423202298,1779922242000,-533.24,0.00014999,2]
[423202297,1779922242000,-533.24,0.00014999,2]
[423202303,1779922242000,-533.24,0.00014999,2]
[423202311,1779922242000,-533.24,0.00014999,2]
[423202309,1779922242000,-533.24,0.00014999,2]
[423202302,1779922242000,-533.24,0.00014999,2]
[423202313,1779922242000,-533.24,0.00014999,2]
[423202312,1779922242000,-533.24,0.00014999,2]
[423202314,1779922242000,-533.42383751,0.00014999,2]
[423202306,1779922242000,-533.24,0.00014999,2]
[423202307,1779922242000,-533.24,0.00014999,2]
[423202305,1779922242000,-533.24,0.00014999,2]
[423202304,1779922242000,-533.24,0.00014999,2]
[423202301,1779922242000,-533.24,0.00014999,2]
[423202315,1779922242000,-199.0,0.00014999,2]
[423202290,1779922242000,-500.0,0.00014999,2]
[423202356,1779922243000,-14374.54798096,0.00015,2]
[423202354,1779922243000,-40822.35001643,0.00015,2]
[423202353,1779922243000,-11370.53843064,0.00015,2]
[423202352,1779922243000,-215.46156935,0.00010037,2]
[423202351,1779922243000,-1300.0,0.00015,2]
[423202350,1779922243000,-154.13809156,0.00015,2]
[423202357,1779922244000,-29.7589951,0.00015,2]
[423203550,1779922546000,150.0,9.186e-05,7]
[423203563,1779923126000,156.97,6.123e-05,2]
[423203565,1779923126000,156.97,6.767e-05,2]
[423203564,1779923126000,156.97,6.445e-05,2]
[423203572,1779923127000,55.76,8.378e-05,2]
[423203571,1779923127000,101.21,8.378e-05,2]
[423203570,1779923127000,156.97,8.056e-05,2]
[423203569,1779923127000,156.97,7.734e-05,2]
[423203568,1779923127000,156.97,7.412e-05,2]
[423203567,1779923127000,27.88,7.089e-05,2]
[423203566,1779923127000,129.09,7.089e-05,2]
[423203574,1779923128000,156.97,9.023e-05,2]
[423203573,1779923128000,156.97,8.7e-05,2]
[423203581,1779923137000,-156.97,9.989e-05,2]
[423203579,1779923137000,-156.97,9.667e-05,2]
[423203580,1779923137000,-208.97895572,9.725e-05,2]
[423203588,1779923137000,-156.97,0.00010956,2]
[423203578,1779923137000,-250.0,9.644e-05,2]
[423203575,1779923137000,-150.0,9.186e-05,2]
[423203576,1779923137000,-250.0,9.228e-05,2]
[423203583,1779923137000,-250.0,0.00010105,2]
[423203577,1779923137000,-156.97,9.345e-05,2]
[423203582,1779923137000,-197.12000001,0.0001,2]
[423203590,1779923137000,-156.97,0.00011601,2]
[423203584,1779923137000,-178.29313302,0.00010105,2]
[423203586,1779923137000,-156.97,0.00010312,2]
[423203587,1779923137000,-156.97,0.00010634,2]
[423203589,1779923137000,-156.97,0.00011278,2]
[423203592,1779923137000,-156.97,0.00011923,2]
[423203593,1779923137000,-156.97,0.00012245,2]
[423203594,1779923137000,-394.95,0.00012353,2]
[423203596,1779923137000,-584.37962011,0.00012482,2]
[423203595,1779923137000,-250.0,0.00012422,2]
[423203585,1779923137000,-500.0,0.00010105,2]
[423203601,1779923157000,-911.0,0.00012583,2]
[423203600,1779923157000,-2726.54,0.00012538,2]
[423203602,1779923157000,-326.65,0.00012584,2]
[423203599,1779923157000,-1088.35,0.00012536,2]
[423203598,1779923157000,-397.52223,0.00012503,2]
[423203604,1779923157000,-150.0,0.00012693,2]
[423203597,1779923157000,-363.65050153,0.00012482,2]
[423203606,1779923157000,-154.5,0.00012883,2]
[423203610,1779923157000,-2000.0,0.00013189,2]
[423203611,1779923157000,-4347.13596017,0.00013189,2]
[423203607,1779923157000,-562.69,0.00012892,2]
[423203603,1779923157000,-200.0,0.00012584,2]
[423203608,1779923157000,-299.99,0.00013123,2]
[423203605,1779923157000,-163.52,0.00012883,2]
[423203609,1779923157000,-150.0,0.00013188,2]
[423203613,1779923241000,-617.38404647,0.00012674,2]
[423203612,1779923241000,-174.4,0.00010303,2]
[423203614,1779923245000,-621.49835246,0.00012674,2]
[423203617,1779923274000,-600.0,0.00012043,2]
[423203618,1779923285000,-600.0,0.00012043,2]
[423203619,1779923295000,-230.3,0.00011579,2]
[423203636,1779923432000,-613.53760107,0.00012674,2]
[423203635,1779923432000,-1048.54696531,0.0001266,2]
[423203634,1779923432000,-1450.17303469,0.0001266,2]
[423203633,1779923432000,-26624.79,0.00012413,2]
[423203630,1779923432000,-257.44973525,0.00012369,2]
[423203628,1779923432000,-650.8204712,0.00012043,2]
[423203631,1779923432000,-2000.0,0.00012379,2]
[423203629,1779923432000,-61.13136423,0.00012369,2]
[423203626,1779923432000,-29.25344937,0.00011579,2]
[423203627,1779923432000,-605.6247152,0.0001186,2]
[423203632,1779923432000,-2000.0,0.00012389,2]
[423203638,1779923432000,-2876.23,0.00012703,2]
[423203640,1779923432000,-2940.98,0.00012703,2]
[423203649,1779923432000,-384.96,0.0001322,2]
[423203653,1779923432000,-2606.86429175,0.00013499,2]
[423203651,1779923432000,-2500.0,0.00013499,2]
[423203643,1779923432000,-384.96,0.00012897,2]
[423203637,1779923432000,-300.0,0.00012702,2]
[423203646,1779923432000,-250.0,0.00013167,2]
[423203648,1779923432000,-9837.11403983,0.00013189,2]
[423203645,1779923432000,-500.0,0.00013089,2]
[423203641,1779923432000,-250.0,0.00012768,2]
[423203642,1779923432000,-670.41,0.00012843,2]
[423203639,1779923432000,-9999.99,0.00012703,2]
[423203647,1779923432000,-399.5608414,0.00013167,2]
[423203650,1779923432000,-150.0,0.00013498,2]
[423203667,1779923440000,-200.285,0.00013499,2]
[423203668,1779923440000,-4735.35739985,0.00013499,2]
[423203669,1779923440000,-671.81221062,0.00013499,2]
[423203666,1779923440000,-2500.0,0.00013499,2]
[423203670,1779923442000,-516.33892861,0.00013499,2]
[423203672,1779923442000,-655.000018,0.00013499,2]
[423203671,1779923442000,-1772.77929573,0.00013499,2]
[423203761,1779923443000,-263.43518697,0.00013554,2]
[423203737,1779923443000,-384.96,0.00013542,2]
[423203735,1779923443000,-13915.29256352,0.00013499,2]
[423203738,1779923443000,-500.0,0.00013554,2]
[423203736,1779923443000,-500.0,0.00013534,2]
[423203740,1779923443000,-500.0,0.00013554,2]
[423203750,1779923443000,-500.0,0.00013554,2]
[423203739,1779923443000,-154.55329877,0.00013554,2]
[423203744,1779923443000,-413.10137688,0.00013554,2]
[423203743,1779923443000,-500.0,0.00013554,2]
[423203742,1779923443000,-500.0,0.00013554,2]